[Event "17th Memorial Lezcano Montalvo 2025"]
[Site "Gran Canaria"]
[Date "2025.04.15"]
[Round "4.1"]
[White "Petriashvili, Nikoloz"]
[Black "Yelisieiev, Yevhenii"]
[Result "1/2-1/2"]
[Annotator "RC"]
[ECO "D13"]
[WhiteElo "2459"]
[BlackElo "2413"]
[PlyCount "122"]
[EventDate "2025.04.13"]
[EventType "swiss"]
[EventCountry "ESP"]
[SourceTitle "playchess.com"]
[Source "ChessBase"]
[SourceQuality "1"]
[TimeControl "5400+30"]

1. Nf3 {[%emt 0:09:25]} d5 {[%emt 0:00:17]} 2. d4 {[%emt 0:00:27]} Nf6 {[%emt 0:00:24]} 3. c4 {[%emt 0:00:17]} c6 {[%emt 0:00:05]} 4. cxd5 {[%emt 0:01:41]} cxd5 {[%emt 0:00:11]} 5. Nc3 {[%emt 0:00:01]} Nc6 {[%emt 0:01:19]} 6. Bf4 {[%emt 0:00:19]} a6 {[%emt 0:00:41]} 7. Ne5 {[%emt 0:01:33]} Bf5 {[%emt 0:10:28]} 8. Nxc6 {[%emt 0:02:34]} bxc6 {[%emt 0:00:05]} 9. e3 {[%emt 0:00:04]} e6 {[%emt 0:11:05]} 10. Be2 {[%emt 0:02:55]} Bd6 {[%emt 0:03:23]} 11. Bxd6 {[%emt 0:02:37]} Qxd6 {[%emt 0:00:04]} 12. O-O {[%emt 0:00:05]} O-O {[%emt 0:03:05]} 13. Na4 {[%emt 0:01:00]} Nd7 {[%emt 0:07:05]} 14. Rc1 {[%emt 0:00:31]} e5 {[%emt 0:00:41]} 15. dxe5 {[%emt 0:06:19]} Nxe5 {[%emt 0:00:45]} 16. Qd4 {[%emt 0:00:31]} Rfe8 {[%emt 0:10:06]} 17. Nc5 {[%emt 0:04:55]} Qg6 {[%emt 0:06:08]} 18. Qf4 {[%emt 0:00:10]} a5 {[%emt 0:05:49]} 19. Rfd1 {[%emt 0:02:35]} Rab8 {[%emt 0:03:08]} 20. b3 {[%emt 0:01:42]} h5 {[%emt 0:02:18]} 21. Qg3 {[%emt 0:01:33]} Qh6 {[%emt 0:05:00]} 22. Rd4 {[%emt 0:01:47]} Rb4 {[%emt 0:01:50]} 23. Rxb4 {[%emt 0:02:53]} axb4 {[%emt 0:00:01]} 24. Qh4 {[%emt 0:00:11]} Bg4 {[%emt 0:07:45]} 25. Bxg4 {[%emt 0:00:56]} Nxg4 {[%emt 0:00:48]} 26. h3 {[%emt 0:00:32]} g5 {[%emt 0:03:20]} 27. Qg3 {[%emt 0:00:07]} Ne5 {[%emt 0:03:15]} 28. h4 {[%emt 0:04:28]} g4 {[%emt 0:03:42]} 29. Qf4 {[%emt 0:00:56]} Qxf4 {[%emt 0:02:00]} 30. exf4 {[%emt 0:00:28]} Ng6 {[%emt 0:00:01]} 31. g3 {[%emt 0:00:27]} Re2 {[%emt 0:01:08]} 32. Nd3 {[%emt 0:00:25]} Rxa2 {[%emt 0:01:12]} 33. Nxb4 {[%emt 0:00:35]} Rb2 {[%emt 0:00:48]} 34. Rxc6 {[%emt 0:03:03]} Ne7 {[%emt 0:01:52]} 35. Rd6 {[%emt 0:01:00]} Rd2 {[%emt 0:02:31]} 36. Kf1 {[%emt 0:09:57]} Kg7 {[%emt 0:00:41]} 37. Rd7 {[%emt 0:05:52]} Kf6 {[%emt 0:00:46]} 38. Ke1 {[%emt 0:00:04]} Rd4 {[%emt 0:01:56]} 39. Rxe7 {[%emt 0:00:20]} Rxb4 {[%emt 0:00:07]} 40. Re5 {[%emt 0:03:09]} Kg6 {[%emt 0:00:37]} 41. Rg5+ {[%emt 0:00:31]} Kh6 {[%emt 0:00:04]} 42. Rxd5 {[%emt 0:00:02]} Rxb3 {[%emt 0:00:06]} 43. Ke2 {[%emt 0:00:01]} Kg6 {[%emt 0:01:03]} 44. Rd3 {[%emt 0:00:05]} Rb1 {[%emt 0:01:29]} 45. Rd6+ {[%emt 0:00:14]} f6 {[%emt 0:01:09]} 46. Rd5 {[%emt 0:00:02]} Rb2+ {[%emt 0:01:05]} 47. Ke3 {[%emt 0:00:07]} Rb3+ {[%emt 0:00:36]} 48. Rd3 {[%emt 0:01:03]} Rb7 {[%emt 0:00:53]} 49. Rd8 {[%emt 0:01:18]} Re7+ {[%emt 0:00:46]} 50. Kd3 {[%emt 0:00:02]} Re1 {[%emt 0:00:22]} 51. Rg8+ {[%emt 0:00:50]} Kh7 {[%emt 0:00:10]} 52. Ra8 {[%emt 0:00:03]} Kg6 {[%emt 0:00:16]} 53. Ra2 {[%emt 0:00:09]} Re7 {[%emt 0:00:42]} 54. Ra5 {[%emt 0:00:10]} Rd7+ {[%emt 0:00:17]} 55. Ke2 {[%emt 0:00:24]} Re7+ {[%emt 0:00:07]} 56. Kf1 {[%emt 0:00:02]} Kh6 {[%emt 0:00:39]} 57. f5 {[%emt 0:00:08]} Kg7 {[%emt 0:00:52]} 58. Rd5 {[%emt 0:00:11]} Re5 {[%emt 0:01:12]} 59. Rxe5 fxe5 60. f3 {[%emt 0:36:44]} gxf3 {[%emt 0:02:15]} 61. g4 {[%emt 0:00:30]} hxg4 {[%emt 0:00:30]} 1/2-1/2

[Event "17th Memorial Lezcano Montalvo 2025"]
[Site "Gran Canaria"]
[Date "2025.04.15"]
[Round "4.2"]
[White "Larino Nieto, David"]
[Black "Fiorito, Joaquin"]
[Result "1-0"]
[Annotator "RC"]
[ECO "A36"]
[WhiteElo "2448"]
[BlackElo "2402"]
[PlyCount "57"]
[EventDate "2025.04.13"]
[EventType "swiss"]
[EventCountry "ESP"]
[SourceTitle "playchess.com"]
[Source "ChessBase"]
[SourceQuality "1"]
[TimeControl "5400+30"]

1. c4 {[%emt 0:05:18]} Nf6 {[%emt 0:00:12]} 2. Nc3 {[%emt 0:00:12]} g6 {[%emt 0:00:28]} 3. g3 {[%emt 0:00:04]} Bg7 {[%emt 0:00:32]} 4. Bg2 {[%emt 0:00:02]} O-O {[%emt 0:00:20]} 5. e4 {[%emt 0:00:24]} d6 {[%emt 0:04:27]} 6. Nge2 {[%emt 0:04:13]} c5 {[%emt 0:01:28]} 7. h3 {[%emt 0:00:47]} Nc6 {[%emt 0:01:30]} 8. d3 {[%emt 0:00:22]} a6 {[%emt 0:03:31]} 9. O-O {[%emt 0:01:21]} Rb8 {[%emt 0:00:42]} 10. a4 {[%emt 0:00:19]} Ne8 {[%emt 0:02:46]} 11. Be3 {[%emt 0:00:40]} Nc7 {[%emt 0:06:55]} 12. d4 {[%emt 0:02:40]} cxd4 {[%emt 0:00:22]} 13. Nxd4 {[%emt 0:00:02]} Nxd4 {[%emt 0:05:59]} 14. Bxd4 {[%emt 0:00:22]} Bxd4 {[%emt 0:00:35]} 15. Qxd4 {[%emt 0:00:02]} b5 {[%emt 0:04:47]} 16. cxb5 {[%emt 0:10:21]} axb5 {[%emt 0:00:08]} 17. a5 {[%emt 0:00:06]} e5 {[%emt 0:04:17]} 18. Qd2 {[%emt 0:03:34]} b4 {[%emt 0:01:51]} 19. Nd5 {[%emt 0:00:16]} Nxd5 {[%emt 0:03:36]} 20. exd5 {[%emt 0:00:02]} Bb7 {[%emt 0:11:44]} 21. Rfc1 {[%emt 0:10:49]} Ba8 {[%emt 0:02:48]} 22. a6 {[%emt 0:16:33]} Qb6 {[%emt 0:00:55]} 23. a7 {[%emt 0:00:18]} Rbc8 {[%emt 0:00:32]} 24. Rc6 {[%emt 0:00:41]} Bxc6 {[%emt 0:06:40]} 25. dxc6 {[%emt 0:00:13]} Ra8 {[%emt 0:00:07]} 26. Qxd6 {[%emt 0:00:30]} Rfd8 {[%emt 0:00:45]} 27. Qd7 {[%emt 0:06:51]} Qc5 {[%emt 0:07:48]} 28. Qb7 {[%emt 0:01:20]} e4 {[%emt 0:01:16]} 29. c7 {[%emt 0:00:48]} 1-0

[Event "17th Memorial Lezcano Montalvo 2025"]
[Site "Gran Canaria"]
[Date "2025.04.15"]
[Round "4.3"]
[White "Strikovic, Aleksa"]
[Black "Pap, Misa"]
[Result "1/2-1/2"]
[Annotator "RC"]
[ECO "E11"]
[WhiteElo "2367"]
[BlackElo "2444"]
[PlyCount "42"]
[EventDate "2025.04.13"]
[EventType "swiss"]
[EventCountry "ESP"]
[SourceTitle "playchess.com"]
[Source "ChessBase"]
[SourceQuality "1"]
[TimeControl "5400+30"]

1. d4 {[%emt 0:00:02]} Nf6 {[%emt 0:00:10]} 2. Nf3 {[%emt 0:00:14]} e6 {[%emt 0:00:07]} 3. c4 {[%emt 0:00:39]} Bb4+ {[%emt 0:00:06]} 4. Bd2 {[%emt 0:00:07]} Qe7 {[%emt 0:00:20]} 5. Nc3 {[%emt 0:00:37]} Nc6 {[%emt 0:01:17]} 6. e3 {[%emt 0:00:07]} Bxc3 {[%emt 0:00:30]} 7. Bxc3 {[%emt 0:00:05]} Ne4 {[%emt 0:00:07]} 8. Qc2 {[%emt 0:01:03]} Nxc3 {[%emt 0:00:08]} 9. Qxc3 {[%emt 0:00:06]} Qb4 {[%emt 0:00:36]} 10. Rc1 {[%emt 0:01:59]} d6 {[%emt 0:05:30]} 11. Qxb4 {[%emt 0:03:50]} Nxb4 {[%emt 0:00:06]} 12. a3 {[%emt 0:00:05]} Nc6 {[%emt 0:00:06]} 13. c5 {[%emt 0:04:08]} Bd7 {[%emt 0:02:19]} 14. cxd6 {[%emt 0:02:47]} cxd6 {[%emt 0:00:06]} 15. Bd3 {[%emt 0:00:07]} Ke7 {[%emt 0:00:52]} 16. Ke2 {[%emt 0:00:36]} h6 {[%emt 0:01:29]} 17. h4 {[%emt 0:00:22]} Rhc8 {[%emt 0:00:53]} 18. Rc3 {[%emt 0:00:43]} Na5 {[%emt 0:00:44]} 19. Rhc1 {[%emt 0:00:13]} Rxc3 {[%emt 0:00:37]} 20. Rxc3 {[%emt 0:00:04]} Rc8 {[%emt 0:00:05]} 21. Rxc8 {[%emt 0:00:08]} Bxc8 {[%emt 0:00:05]} 1/2-1/2

[Event "17th Memorial Lezcano Montalvo 2025"]
[Site "Gran Canaria"]
[Date "2025.04.15"]
[Round "4.4"]
[White "Martinez Ramirez, Lennis"]
[Black "Akhvlediani, Irakli"]
[Result "0-1"]
[Annotator "RC"]
[ECO "B30"]
[WhiteElo "2443"]
[BlackElo "2387"]
[PlyCount "80"]
[EventDate "2025.04.13"]
[EventType "swiss"]
[EventCountry "ESP"]
[SourceTitle "playchess.com"]
[Source "ChessBase"]
[SourceQuality "1"]
[TimeControl "5400+30"]

1. Nf3 {[%emt 0:00:38]} c5 {[%emt 0:00:57]} 2. e4 {[%emt 0:01:53]} Nc6 {[%emt 0:00:03]} 3. Bb5 {[%emt 0:00:11]} e6 {[%emt 0:00:03]} 4. O-O {[%emt 0:00:14]} Nge7 {[%emt 0:00:02]} 5. c3 {[%emt 0:00:45]} a6 {[%emt 0:00:31]} 6. Ba4 {[%emt 0:00:00]} b5 {[%emt 0:00:48]} 7. Bc2 {[%emt 0:00:02]} Bb7 {[%emt 0:00:36]} 8. Re1 {[%emt 0:00:06]} Ng6 {[%emt 0:03:09]} 9. a4 {[%emt 0:03:05]} Be7 {[%emt 0:09:08]} 10. g3 {[%emt 0:09:42]} O-O {[%emt 0:04:54]} 11. d4 {[%emt 0:05:41]} cxd4 {[%emt 0:00:18]} 12. Nxd4 {[%emt 0:01:15]} b4 {[%emt 0:17:29]} 13. h4 {[%emt 0:21:40]} Nge5 {[%emt 0:18:33]} 14. h5 {[%emt 0:07:19]} f5 {[%emt 0:09:15]} 15. Bf4 {[%emt 0:03:04]} Bf6 {[%emt 0:25:16]} 16. Nd2 {[%emt 0:04:22]} bxc3 {[%emt 0:00:15]} 17. bxc3 {[%emt 0:00:02]} Nxd4 {[%emt 0:01:31]} 18. cxd4 {[%emt 0:00:05]} Nc6 {[%emt 0:00:06]} 19. Rb1 {[%emt 0:01:00]} Na5 {[%emt 0:05:35]} 20. exf5 {[%emt 0:12:28]} exf5 {[%emt 0:00:01]} 21. Nf3 {[%emt 0:01:41]} Be4 {[%emt 0:00:16]} 22. Rxe4 {[%emt 0:04:16]} fxe4 {[%emt 0:00:05]} 23. Bxe4 {[%emt 0:00:05]} d5 {[%emt 0:00:07]} 24. Bc2 {[%emt 0:00:24]} Qe8 {[%emt 0:01:48]} 25. Ne5 {[%emt 0:00:26]} Nc4 {[%emt 0:00:57]} 26. Rb7 {[%emt 0:02:44]} Rd8 {[%emt 0:00:04]} 27. Ng4 {[%emt 0:03:05]} Nd6 {[%emt 0:00:40]} 28. Rb6 {[%emt 0:10:37]} Ne4 {[%emt 0:00:55]} 29. Rxa6 {[%emt 0:01:15]} Nc3 {[%emt 0:00:48]} 30. Qd3 {[%emt 0:00:46]} Qe1+ {[%emt 0:00:45]} 31. Kh2 {[%emt 0:00:29]} Ne4 {[%emt 0:00:01]} 32. Ra7 {[%emt 0:03:12]} Bg5 {[%emt 0:00:34]} 33. h6 {[%emt 0:01:57]} Bxf4 {[%emt 0:00:49]} 34. gxf4 {[%emt 0:01:55]} Rxf4 {[%emt 0:00:15]} 35. Rxg7+ {[%emt 0:00:13]} Kh8 {[%emt 0:00:05]} 36. Qe3 {[%emt 0:00:07]} Rxf2+ {[%emt 0:01:09]} 37. Qxf2 {[%emt 0:02:16]} Nxf2 38. Nf6 {[%emt 0:00:00]} Qh1+ {[%emt 0:00:26]} 39. Kg3 {[%emt 0:00:00]} Qh3+ {[%emt 0:00:31]} 40. Kf4 {[%emt 0:00:09]} Qxh6+ {[%emt 0:00:11]} 0-1

[Event "17th Memorial Lezcano Montalvo 2025"]
[Site "Gran Canaria"]
[Date "2025.04.15"]
[Round "4.5"]
[White "Sanz Wawer, Daniel"]
[Black "Kovchan, Alexander"]
[Result "0-1"]
[Annotator "RC"]
[ECO "A62"]
[WhiteElo "2316"]
[BlackElo "2433"]
[PlyCount "60"]
[EventDate "2025.04.13"]
[EventType "swiss"]
[EventCountry "ESP"]
[SourceTitle "playchess.com"]
[Source "ChessBase"]
[SourceQuality "1"]
[TimeControl "5400+30"]

1. d4 {[%emt 0:00:03]} g6 {[%emt 0:03:13]} 2. c4 {[%emt 0:01:03]} Bg7 {[%emt 0:00:15]} 3. g3 {[%emt 0:00:34]} c5 {[%emt 0:01:29]} 4. d5 {[%emt 0:01:26]} d6 {[%emt 0:01:55]} 5. Bg2 {[%emt 0:00:20]} Nf6 {[%emt 0:00:18]} 6. Nc3 {[%emt 0:00:48]} O-O {[%emt 0:00:10]} 7. Nf3 {[%emt 0:00:15]} e6 {[%emt 0:00:08]} 8. O-O {[%emt 0:00:55]} exd5 {[%emt 0:00:12]} 9. cxd5 {[%emt 0:00:17]} Re8 {[%emt 0:00:08]} 10. Bf4 {[%emt 0:02:15]} Nh5 {[%emt 0:01:20]} 11. Bg5 {[%emt 0:06:27]} Qd7 {[%emt 0:01:11]} 12. a4 {[%emt 0:01:30]} h6 {[%emt 0:01:08]} 13. Bd2 {[%emt 0:02:40]} Na6 {[%emt 0:03:51]} 14. h3 {[%emt 0:08:53]} Nb4 {[%emt 0:01:02]} 15. g4 {[%emt 1:10:34]} Nf6 {[%emt 0:01:34]} 16. Bf4 {[%emt 0:00:00]} b6 {[%emt 0:03:38]} 17. Nd2 {[%emt 0:00:00]} Ba6 {[%emt 0:00:30]} 18. Re1 {[%emt 0:01:30]} Re7 {[%emt 0:01:07]} 19. Nde4 {[%emt 0:00:00]} Nxe4 {[%emt 0:16:48]} 20. Nxe4 {[%emt 0:00:00]} f5 {[%emt 0:00:56]} 21. Nxd6 {[%emt 0:00:00]} fxg4 {[%emt 0:00:51]} 22. Ra3 {[%emt 0:00:00]} Rf8 {[%emt 0:02:05]} 23. Bh2 {[%emt 0:00:00]} Bxb2 {[%emt 0:09:03]} 24. Rb3 {[%emt 0:00:00]} Bd4 {[%emt 0:00:23]} 25. Ne4 {[%emt 0:00:00]} gxh3 {[%emt 0:03:34]} 26. Rxb4 {[%emt 0:00:00]} Qg4 {[%emt 0:01:12]} 27. Bg3 {[%emt 0:00:00]} Rxf2 {[%emt 0:07:02]} 28. Qxd4 {[%emt 0:02:58]} cxd4 {[%emt 0:01:45]} 29. Kxf2 {[%emt 0:00:42]} Rf7+ {[%emt 0:01:14]} 30. Bf3 {[%emt 0:01:14]} Qxe4 {[%emt 0:00:14]} 0-1

[Event "17th Memorial Lezcano Montalvo 2025"]
[Site "Gran Canaria"]
[Date "2025.04.15"]
[Round "4.6"]
[White "Fiorito, Francisco"]
[Black "Narciso Dublan, Marc"]
[Result "1/2-1/2"]
[Annotator "RC"]
[ECO "D78"]
[WhiteElo "2431"]
[BlackElo "2376"]
[PlyCount "152"]
[EventDate "2025.04.13"]
[EventType "swiss"]
[EventCountry "ESP"]
[SourceTitle "playchess.com"]
[Source "ChessBase"]
[SourceQuality "1"]
[TimeControl "5400+30"]

1. Nf3 {[%emt 0:00:07]} d5 {[%emt 0:00:16]} 2. g3 {[%emt 0:00:18]} Nf6 {[%emt 0:00:33]} 3. Bg2 {[%emt 0:00:14]} g6 {[%emt 0:00:12]} 4. d4 {[%emt 0:01:16]} Bg7 {[%emt 0:00:11]} 5. c4 {[%emt 0:00:16]} c6 {[%emt 0:00:18]} 6. b3 {[%emt 0:00:30]} O-O {[%emt 0:00:31]} 7. Bb2 {[%emt 0:00:14]} a5 {[%emt 0:07:20]} 8. Nc3 {[%emt 0:00:07]} Ne4 {[%emt 0:01:00]} 9. O-O {[%emt 0:02:57]} Bf5 {[%emt 0:00:33]} 10. Rc1 {[%emt 0:03:11]} Nd7 {[%emt 0:05:20]} 11. Nh4 {[%emt 0:02:57]} Nxc3 {[%emt 0:00:20]} 12. Bxc3 {[%emt 0:00:05]} Be6 {[%emt 0:00:15]} 13. e4 {[%emt 0:01:50]} Nf6 {[%emt 0:12:34]} 14. cxd5 {[%emt 0:00:57]} cxd5 {[%emt 0:00:06]} 15. e5 {[%emt 0:00:02]} Ne4 {[%emt 0:00:32]} 16. Bb2 {[%emt 0:01:40]} f6 {[%emt 0:08:11]} 17. Nf3 {[%emt 0:16:07]} Bh6 {[%emt 0:06:05]} 18. Rc2 {[%emt 0:02:03]} a4 {[%emt 0:02:35]} 19. Ne1 {[%emt 0:04:51]} axb3 {[%emt 0:02:00]} 20. axb3 {[%emt 0:00:30]} fxe5 {[%emt 0:03:43]} 21. Nd3 {[%emt 0:15:29]} Qb6 {[%emt 0:09:29]} 22. b4 {[%emt 0:04:54]} Rad8 {[%emt 0:15:33]} 23. dxe5 {[%emt 0:01:21]} Bf5 {[%emt 0:03:00]} 24. e6 {[%emt 0:07:16]} d4 {[%emt 0:04:53]} 25. g4 {[%emt 0:04:21]} Nc3 {[%emt 0:00:20]} 26. Bxc3 {[%emt 0:00:08]} Bxd3 {[%emt 0:00:17]} 27. Qxd3 {[%emt 0:00:04]} dxc3 {[%emt 0:00:08]} 28. Qxc3 {[%emt 0:00:04]} Rd4 {[%emt 0:02:21]} 29. Qc5 {[%emt 0:02:41]} Qxb4 {[%emt 0:06:37]} 30. g5 {[%emt 0:00:21]} Bg7 {[%emt 0:00:32]} 31. Qxb4 {[%emt 0:00:12]} Rxb4 {[%emt 0:00:07]} 32. Rc7 {[%emt 0:00:08]} Re8 {[%emt 0:02:31]} 33. Rxb7 {[%emt 0:01:45]} Rxb7 {[%emt 0:00:52]} 34. Bxb7 {[%emt 0:00:03]} Rb8 {[%emt 0:01:37]} 35. Be4 {[%emt 0:01:48]} Rb4 {[%emt 0:02:05]} 36. Re1 {[%emt 0:01:12]} Bd4 {[%emt 0:01:32]} 37. Kg2 {[%emt 0:00:12]} Rb2 {[%emt 0:00:37]} 38. Rf1 {[%emt 0:00:02]} Kg7 {[%emt 0:00:40]} 39. h4 {[%emt 0:00:46]} Bc5 {[%emt 0:01:39]} 40. Kg3 {[%emt 0:00:44]} Rb6 {[%emt 0:01:52]} 41. Bd5 {[%emt 0:00:06]} Bd6+ {[%emt 0:00:43]} 42. f4 {[%emt 0:01:46]} Rb4 {[%emt 0:00:17]} 43. Bg2 {[%emt 0:00:34]} Rd4 {[%emt 0:00:31]} 44. Bh3 {[%emt 0:00:27]} h6 {[%emt 0:00:44]} 45. Bg2 {[%emt 0:00:47]} Rd3+ {[%emt 0:00:38]} 46. Rf3 {[%emt 0:01:01]} Rxf3+ {[%emt 0:00:33]} 47. Kxf3 {[%emt 0:00:06]} Bb4 {[%emt 0:00:14]} 48. Ke2 {[%emt 0:00:28]} Bd6 {[%emt 0:00:34]} 49. Ke3 {[%emt 0:00:09]} Bc5+ {[%emt 0:00:10]} 50. Kf3 {[%emt 0:00:05]} Bb4 {[%emt 0:00:13]} 51. Kg4 {[%emt 0:00:24]} Be1 {[%emt 0:01:13]} 52. Be4 {[%emt 0:00:05]} Bd2 {[%emt 0:00:50]} 53. Bd3 {[%emt 0:00:46]} h5+ {[%emt 0:00:26]} 54. Kg3 {[%emt 0:00:06]} Be1+ {[%emt 0:00:30]} 55. Kh3 {[%emt 0:00:01]} Bf2 {[%emt 0:00:23]} 56. f5 {[%emt 0:00:01]} gxf5 {[%emt 0:00:14]} 57. Bxf5 {[%emt 0:00:02]} Be1 {[%emt 0:00:52]} 58. Bc2 {[%emt 0:00:01]} Bd2 {[%emt 0:00:35]} 59. Bd1 {[%emt 0:00:07]} Kg6 {[%emt 0:00:03]} 60. Bc2+ {[%emt 0:00:01]} Kg7 {[%emt 0:00:05]} 61. Ba4 {[%emt 0:00:01]} Kg6 {[%emt 0:00:31]} 62. Be8+ {[%emt 0:00:01]} Kf5 {[%emt 0:00:16]} 63. Bxh5 {[%emt 0:00:02]} Kf4 {[%emt 0:01:12]} 64. Be2 {[%emt 0:00:23]} Be1 {[%emt 0:00:22]} 65. g6 {[%emt 0:00:32]} Bc3 {[%emt 0:00:07]} 66. Kg2 {[%emt 0:00:18]} Bg7 {[%emt 0:00:50]} 67. h5 {[%emt 0:00:09]} Kf5 {[%emt 0:00:34]} 68. Bc4 {[%emt 0:00:44]} Kg5 {[%emt 0:00:14]} 69. Be2 {[%emt 0:00:05]} Kf5 {[%emt 0:00:11]} 70. Kf3 {[%emt 0:01:10]} Kxe6 {[%emt 0:00:18]} 71. Ke4 {[%emt 0:00:03]} Bh6 {[%emt 0:00:27]} 72. Bc4+ {[%emt 0:00:05]} Kf6 {[%emt 0:00:06]} 73. Kd5 {[%emt 0:00:03]} e5 {[%emt 0:00:55]} 74. Kd6 {[%emt 0:00:06]} e4 {[%emt 0:00:43]} 75. Kd7 {[%emt 0:00:10]} Bg5 {[%emt 0:00:43]} 76. Be2 {[%emt 0:00:09]} Ke5 {[%emt 0:01:56]} 1/2-1/2

[Event "17th Memorial Lezcano Montalvo 2025"]
[Site "Gran Canaria"]
[Date "2025.04.15"]
[Round "4.7"]
[White "Fiorito, Fabian"]
[Black "Alsina Leal, Daniel"]
[Result "0-1"]
[Annotator "TA"]
[ECO "E06"]
[WhiteElo "2268"]
[BlackElo "2496"]
[PlyCount "68"]
[EventDate "2025.04.13"]
[EventType "swiss"]
[EventCountry "ESP"]
[SourceTitle "playchess.com"]
[Source "ChessBase"]
[SourceQuality "1"]
[TimeControl "5400+30"]

{[%evp 9,68,-9,35,33,45,26,29,23,33,-5,0,-11,-8,-4,20,24,17,-14,0,-46,-22,-77,-71,-126,-126,-125,-119,-92,-125,-144,-138,-198,-206,-220,-220,-237,-241,-588,-593,-595,-590,-637,-597,-702,-719,-722,-717,-916,-817,-1456,-641,-628,-654,-630,-604,-593,-566,-562,-563,-568,-560]} 1. d4 {[%emt 0:00:49]} Nf6 {[%emt 0:00:15]} 2. c4 {[%emt 0:01:01]} e6 {[%emt 0:00:08]} 3. Nf3 {[%emt 0:00:48]} d5 {[%emt 0:00:06]} 4. g3 {[%emt 0:01:25]} Be7 {[%emt 0:00:12]} 5. Bg2 {[%emt 0:00:11]} Ne4 {[%emt 0:00:21]} 6. O-O {[%emt 0:01:00] E06: Closed Catalan: Early deviations.} f5 {[%emt 0:00:18]} 7. b3 {[%emt 0:06:20]} Nc6 {[%emt 0:00:50]} 8. Bb2 {[%emt 0:00:22] White has an edge.} h5 {[%emt 0:02:03][%cal Bh7h5,Bh5h4][%mdl 32]} 9. Nbd2 {[%emt 0:03:51]} h4 {[%emt 0:01:01]} 10. e3 {[%emt 0:03:57]} Bd7 {[%emt 0:16:58]} 11. a3 $146 {[%emt 0:01:19]} (11. Nxe4 dxe4 12. d5 exd5 13. Bxg7 Rh7 14. Ne5 dxc4 15. bxc4 Bd6 16. Nxd7 Qxd7 17. Bc3 O-O-O 18. Rb1 hxg3 19. hxg3 Qf7 20. Qa4 Qh5 21. Rfd1 {½-½ Mosesov,D (2391)-Osmak,I (2438) UKR-ch op 89th 2020 (7)}) 11... a5 {[%emt 0:05:41]} 12. Nxe4 {[%emt 0:03:41]} fxe4 {[%emt 0:11:14]} 13. Nd2 {[%emt 0:00:37]} hxg3 {[%emt 0:15:30]} 14. hxg3 {[%emt 0:04:42] A sharp opening} (14. fxg3 $11 Bg5 15. Qe1) 14... Bg5 {[%emt 0:02:01]} 15. Nxe4 {[%emt 0:30:23]} dxe4 $17 {[%emt 0:00:37]} 16. d5 {[%emt 0:00:55]} (16. Qc2 $142) 16... exd5 {[%emt 0:06:44]} 17. cxd5 {[%emt 0:01:53][%cal Og2e4] [#] Bxe4! is the strong threat.} Ne7 {[%emt 0:03:41]} 18. Bxg7 {[%emt 0:06:58]} Rh7 {[%emt 0:00:47]} 19. Be5 {[%emt 0:01:19]} Bf5 {[%emt 0:05:01]} 20. g4 {[%emt 0:06:28]} (20. d6 $17 cxd6 21. Bxd6) 20... Bg6 $19 {[%emt 0:03:01]} (20... Qxd5 21. Qxd5 (21. Bxc7 $2 Qxd1 22. Rfxd1 Bxg4 $19) 21... Nxd5 22. gxf5 $14) 21. f4 {[%emt 0:00:21]} exf3 {[%emt 0:02:20]} (21... Qxd5 22. Qxd5 Nxd5 23. fxg5 $11) 22. Qxf3 {[%emt 0:00:26]} Qxd5 {[%emt 0:07:57]} 23. Qg3 {[%emt 0:14:22]} (23. Bxc7 {is more resistant.} Qxf3 (23... Qxb3 24. Bf4 $17) 24. Rxf3) 23... Qxb3 {[%emt 0:02:07] Black is clearly winning.} 24. Bf4 {[%emt 0:01:29]} Bxf4 {[%emt 0:00:27]} 25. Qxf4 {[%emt 0:01:58]} O-O-O {[%emt 0:01:50]} 26. Qe5 {[%emt 0:02:32]} Nc6 {[%emt 0:03:37]} 27. Qg5 {[%emt 0:00:43]} Bd3 {[%emt 0:01:19]} 28. Rfd1 {[%emt 0:00:56]} Qe6 {[%emt 0:01:08] [#] Threatens to win with ...Rg8.} 29. Rac1 {[%emt 0:00:42]} Qe5 {[%emt 0:02:11]} 30. Qxe5 {[%emt 0:01:43]} Nxe5 {[%emt 0:00:01]} 31. Rc5 {[%emt 0:00:05]} Nxg4 {[%emt 0:01:41]} 32. Rxa5 {[%emt 0:00:02]} Ba6 {[%emt 0:00:58]} (32... Nxe3 $2 {perishes.} 33. Ra8+ Kd7 34. Rxd3+ $18) 33. Rxd8+ {[%emt 0:02:02]} Kxd8 {[%emt 0:00:01]} 34. e4 {[%emt 0:00:07]} Rg7 {[%emt 0:00:56] Weighted Error Value: White=0.80/Black=0.45  Mistake:       	White=5     	---        Inaccurate:     	White=2     	---        OK:         	White=6     	Black=12     Best:        	---       	Black=3} 0-1